bitfinex/quotes_BTCUSD_20220120
["timestamp","ask_amount","ask_price","bid_price","bid_amount"]
[1642653439125,0.21769225,41943.0,41940.0,0.059606]
[1642653441071,0.26069225,41943.0,41940.0,0.063606]
[1642653441767,2.49879709,41942.0,41940.0,0.063606]
[1642653442470,2.49879709,41942.0,41940.0,0.059606]
[1642653443071,2.52179709,41942.0,41940.0,0.065606]
[1642653443351,0.023,41942.0,41941.0,0.59279495]
[1642653443532,0.023,41942.0,41941.0,0.64422095]
[1642653444133,0.023,41942.0,41941.0,0.93592309]
[1642653444336,0.00111971,41947.0,41941.0,0.93592309]
[1642653444530,0.00111971,41947.0,41941.0,0.55073709]
[1642653444730,0.00118847,41947.0,41941.0,0.55073709]
[1642653445131,0.04118847,41947.0,41941.0,0.61533509]
[1642653445432,0.04006876,41947.0,41941.0,0.61533509]
[1642653445633,0.23302369,41946.0,41941.0,0.61533509]
[1642653445833,2.6726316,41946.0,41943.0,0.49867432]
[1642653446032,2.67255994,41946.0,41943.0,0.49867432]
[1642653446533,2.67255994,41946.0,41941.0,0.26403495]
[1642653446534,2.67255994,41946.0,41941.0,0.24279495]
[1642653447168,2.67955994,41946.0,41941.0,0.25579495]
[1642653448268,2.67255994,41946.0,41941.0,0.24279495]
[1642653449072,2.67955994,41946.0,41941.0,0.013]
[1642653450278,2.67255994,41946.0,41939.0,0.51914688]
[1642653450919,2.67255994,41946.0,41939.0,0.39994588]
[1642653451122,2.68055994,41946.0,41939.0,0.41694588]
[1642653452220,2.67255994,41946.0,41939.0,0.39994588]
[1642653453122,2.67955994,41946.0,41939.0,0.41594588]
[1642653454321,2.67255994,41946.0,41939.0,0.39994588]
[1642653454973,2.67255994,41946.0,41939.0,0.41794588]
[1642653455176,2.67255994,41946.0,41939.0,0.018]
[1642653456679,2.67255994,41946.0,41937.0,0.01634314]
[1642653456876,2.67255994,41946.0,41938.0,0.5]
[1642653457076,2.67955994,41946.0,41939.0,0.015]
[1642653457278,2.67955994,41946.0,41939.0,0.01506876]
[1642653458327,0.14340314,41945.0,41939.0,6.876e-05]
[1642653458727,0.09550314,41944.0,41934.0,0.50015471]
[1642653459026,0.33318098,41941.0,41939.0,0.027]
[1642653459229,0.38108098,41941.0,41939.0,0.027]
[1642653459829,0.71608068,41940.0,41939.0,0.027]
[1642653460029,0.86074821,41940.0,41939.0,0.027]
[1642653460327,0.86074821,41940.0,41939.0,0.02706876]
[1642653460928,0.86074821,41940.0,41939.0,6.876e-05]
[1642653461128,0.87374821,41940.0,41939.0,6.876e-05]
[1642653461329,0.55766753,41940.0,41933.0,0.00121312]
[1642653461530,0.19491805,41939.0,41934.0,0.00015471]
[1642653461731,0.0479,41938.0,41934.0,0.00015471]
[1642653462571,0.0479,41938.0,41933.0,0.00121307]
[1642653462773,0.0479,41938.0,41934.0,0.00015471]
[1642653462969,0.0629,41938.0,41934.0,0.00015471]
[1642653463770,0.0629,41938.0,41933.0,0.00121307]
[1642653463971,0.0629,41938.0,41934.0,0.00015471]
[1642653465072,0.0629,41938.0,41933.0,0.00121307]
[1642653465271,0.0629,41938.0,41934.0,0.00015471]
[1642653466336,0.0479,41938.0,41934.0,0.00015471]
[1642653466536,0.0479,41938.0,41934.0,8.935e-05]
[1642653467137,0.0569,41938.0,41934.0,8.935e-05]
[1642653467336,0.0569,41938.0,41933.0,0.00121307]
[1642653467536,0.0569,41938.0,41934.0,8.935e-05]
[1642653468337,0.0479,41938.0,41934.0,8.935e-05]
[1642653468538,0.0479,41938.0,41933.0,0.00121307]
[1642653468738,0.0479,41938.0,41934.0,8.935e-05]
[1642653469781,0.0569,41938.0,41933.0,0.00121307]
[1642653469981,0.0569,41938.0,41934.0,8.935e-05]
[1642653470982,0.0569,41938.0,41933.0,0.00121307]
[1642653471181,0.0569,41938.0,41934.0,8.935e-05]
[1642653471381,0.0719,41938.0,41934.0,8.935e-05]
[1642653471583,0.0629,41938.0,41934.0,8.935e-05]
[1642653472583,0.0479,41938.0,41934.0,8.935e-05]
[1642653473419,0.0629,41938.0,41933.0,0.00121307]
[1642653473625,0.0629,41938.0,41934.0,8.935e-05]
[1642653474624,0.0479,41938.0,41933.0,0.00121307]
[1642653474833,0.0479,41938.0,41934.0,8.935e-05]
[1642653475426,0.0629,41938.0,41934.0,8.935e-05]
[1642653475826,0.0629,41938.0,41933.0,0.00121307]
[1642653476024,0.0629,41938.0,41934.0,8.935e-05]
[1642653476625,0.0479,41938.0,41934.0,8.935e-05]
[1642653477072,0.0479,41938.0,41933.0,0.00121307]
[1642653477273,0.0479,41938.0,41934.0,8.935e-05]
[1642653477480,0.0629,41938.0,41934.0,8.935e-05]
[1642653477683,0.9998771,41955.0,41943.0,0.00125355]
[1642653477890,0.02,41959.0,41943.0,0.00125355]
[1642653477891,0.02,41959.0,41954.0,0.00121712]
[1642653478077,0.02,41959.0,41955.0,0.01624]
[1642653478474,0.02,41959.0,41958.0,0.00126793]
[1642653478875,0.02027164,41959.0,41958.0,0.00126793]
[1642653479077,0.02027164,41959.0,41958.0,0.80126793]
[1642653479278,0.3,41965.0,41958.0,1.18645393]
[1642653479478,0.3,41965.0,41958.0,0.80826793]
[1642653479677,0.20005536,41961.0,41959.0,0.385186]
[1642653479980,0.20005536,41961.0,41958.0,0.00826793]
[1642653481021,0.20005536,41961.0,41960.0,0.01624]
[1642653482224,0.20005536,41961.0,41958.0,0.01726793]
[1642653482426,0.20005536,41961.0,41958.0,0.009]
[1642653482824,0.20005536,41961.0,41959.0,0.01939424]
[1642653483425,0.20005536,41961.0,41959.0,0.02739424]
[1642653484024,0.20005536,41961.0,41960.0,0.01624]
[1642653485473,0.20005536,41961.0,41960.0,0.02324]
[1642653486976,0.20005536,41961.0,41960.0,0.01624]
[1642653487176,0.20005536,41961.0,41959.0,0.01939424]
[1642653487374,0.20005536,41961.0,41960.0,0.007]
[1642653488332,0.20005536,41961.0,41960.0,0.02324]
[1642653488733,0.20005536,41961.0,41960.0,0.01624]
[1642653489333,0.20005536,41961.0,41960.0,0.67524]
[1642653489531,0.00110933,41963.0,41960.0,1.060426]
[1642653489732,0.29610933,41965.0,41962.0,0.45]
[1642653489940,0.29610933,41965.0,41963.0,0.01939239]
[1642653490339,0.001,41967.0,41963.0,0.01939239]
[1642653490633,0.00012034,41966.0,41963.0,0.25526981]
[1642653491032,0.00010315,41965.0,41963.0,0.25526981]
[1642653491432,8.596e-05,41964.0,41963.0,0.25526981]
[1642653491633,8.596e-05,41964.0,41963.0,0.04763239]
[1642653492078,8.596e-05,41964.0,41963.0,0.03139239]
[1642653492478,1.332e-05,41964.0,41963.0,0.03139239]
[1642653493078,1.332e-05,41964.0,41963.0,0.01939239]
[1642653493481,1.332e-05,41964.0,41963.0,0.02739239]
[1642653494685,1.332e-05,41964.0,41963.0,0.01939239]
[1642653495489,1.332e-05,41964.0,41963.0,0.02439239]
[1642653496121,1.332e-05,41964.0,41963.0,0.04063239]
[1642653496520,1.332e-05,41964.0,41963.0,0.34063239]
[1642653496720,1.332e-05,41964.0,41963.0,0.72081839]
[1642653497523,1.332e-05,41964.0,41963.0,0.72981839]
[1642653497723,1.332e-05,41964.0,41963.0,0.42981839]
[1642653497920,1.332e-05,41964.0,41963.0,0.04463239]
[1642653498922,1.332e-05,41964.0,41963.0,0.03563239]
[1642653499593,1.332e-05,41964.0,41963.0,0.04963239]
[1642653500596,1.332e-05,41964.0,41963.0,0.39963239]
[1642653500799,1.332e-05,41964.0,41963.0,0.38563239]
[1642653501595,1.332e-05,41964.0,41963.0,0.39963239]
[1642653502696,1.332e-05,41964.0,41963.0,0.69963239]
[1642653502898,1.332e-05,41964.0,41963.0,1.07081839]
[1642653503098,1.332e-05,41964.0,41963.0,0.77081839]
[1642653503527,1.332e-05,41964.0,41963.0,0.78481839]
[1642653503930,1.332e-05,41964.0,41963.0,0.43481839]
[1642653504730,1.332e-05,41964.0,41963.0,0.42081839]
[1642653504929,1.332e-05,41964.0,41963.0,0.03563239]
[1642653505528,1.332e-05,41964.0,41963.0,0.04863239]
[1642653508677,1.332e-05,41964.0,41963.0,0.03563239]
[1642653509478,1.332e-05,41964.0,41963.0,0.04963239]
[1642653511325,1.332e-05,41964.0,41963.0,0.03563239]
[1642653511531,1.332e-05,41964.0,41963.0,0.04163239]
[1642653512128,1.332e-05,41964.0,41963.0,0.54163239]
[1642653512730,1.332e-05,41964.0,41963.0,0.53563239]
[1642653513537,1.332e-05,41964.0,41963.0,0.54163239]
[1642653514876,1.332e-05,41964.0,41963.0,0.53563239]
[1642653515077,1.332e-05,41964.0,41963.0,0.92081839]
[1642653515478,1.332e-05,41964.0,41963.0,0.92681839]
[1642653516878,1.332e-05,41964.0,41963.0,0.42681839]
[1642653517493,1.332e-05,41964.0,41963.0,0.42881839]
[1642653518079,0.5597937,41968.0,41963.0,0.04363239]
[1642653518080,0.55190581,41968.0,41963.0,0.04363239]
[1642653518328,0.55190581,41968.0,41964.0,0.18908519]
[1642653518532,0.55190581,41968.0,41965.0,0.01939146]
[1642653519327,0.3354212,41968.0,41965.0,0.01939146]
[1642653521527,0.3354212,41968.0,41965.0,0.02039146]
[1642653522878,0.60713768,41967.0,41966.0,0.01624]
[1642653524577,0.73082514,41969.0,41966.0,0.01624]
[1642653524578,0.60713768,41968.0,41966.0,0.01624]
[1642653524778,0.62922608,41969.0,41967.0,0.01939054]
[1642653524979,6.876e-05,41968.0,41967.0,0.01939054]
[1642653526948,6.876e-05,41968.0,41967.0,0.03563054]
[1642653527651,6.876e-05,41968.0,41967.0,0.04063054]
[1642653528951,6.876e-05,41968.0,41967.0,0.03563054]
[1642653529156,6.876e-05,41968.0,41967.0,0.33563054]
[1642653529583,6.876e-05,41968.0,41967.0,0.34063054]
[1642653530788,6.876e-05,41968.0,41967.0,0.33563054]
[1642653531086,6.876e-05,41968.0,41967.0,0.03563054]
[1642653531586,6.876e-05,41968.0,41967.0,0.04263054]
[1642653531985,6.876e-05,41968.0,41967.0,0.6615375]
[1642653532386,6.876e-05,41968.0,41967.0,1.1615375]
[1642653532586,6.876e-05,41968.0,41967.0,1.16037783]
[1642653532788,6.876e-05,41968.0,41967.0,1.54556383]
[1642653532986,6.876e-05,41968.0,41967.0,1.53856383]
[1642653533443,0.00108841,41970.0,41968.0,1.301426]
[1642653533737,0.00108841,41970.0,41969.0,2.03119184]
[1642653533933,0.00108841,41970.0,41969.0,2.08119184]
[1642653534233,0.02535271,41979.0,41975.0,0.00124431]
[1642653534234,0.021,41979.0,41975.0,0.00124431]
[1642653534437,0.02535302,41979.0,41975.0,0.01748431]
[1642653534633,0.0001719,41978.0,41975.0,0.01748431]
[1642653534836,0.0001719,41978.0,41977.0,0.5]
[1642653535035,0.02535302,41979.0,41977.0,0.5]
[1642653535433,0.021,41979.0,41977.0,0.5]
[1642653535635,0.021,41979.0,41978.0,0.01624]
[1642653535935,0.02118909,41979.0,41978.0,0.51624]
[1642653536134,0.02118909,41979.0,41978.0,0.76624]
[1642653536334,0.02118909,41979.0,41978.0,0.51624]
[1642653537483,0.02118909,41979.0,41978.0,0.01624]
[1642653537684,0.02118909,41979.0,41978.0,0.52424]
[1642653539085,0.02118909,41979.0,41978.0,1.02424]
[1642653539287,0.02118909,41979.0,41978.0,1.409426]
[1642653539585,0.02118909,41979.0,41978.0,1.417426]
[1642653539986,0.02118909,41979.0,41978.0,1.409426]
[1642653540844,0.02118909,41979.0,41978.0,0.901426]
[1642653541230,0.02118909,41979.0,41978.0,0.51624]
[1642653541731,0.02118909,41979.0,41978.0,0.52524]
[1642653542032,0.02118909,41979.0,41978.0,0.02524]
[1642653543233,0.02118909,41979.0,41978.0,0.01624]
[1642653543732,0.01523374,41979.0,41978.0,0.01624]
[1642653543933,0.01523374,41979.0,41978.0,0.02424]
[1642653544333,0.01523374,41979.0,41978.0,0.008]
[1642653545681,0.01523374,41979.0,41978.0,0.013]
[1642653545877,0.01523374,41979.0,41978.0,0.005]
[1642653546878,0.01523374,41979.0,41975.0,0.18978435]
[1642653547279,0.0001719,41978.0,41975.0,0.18978435]
[1642653547481,0.0001719,41978.0,41976.0,0.01624]
[1642653547685,0.00015471,41977.0,41976.0,0.01624]
[1642653548729,0.00015471,41977.0,41976.0,1.01624]
[1642653548929,0.00015471,41977.0,41976.0,1.401426]
[1642653549728,0.00015471,41977.0,41976.0,1.912426]
[1642653550930,0.00015471,41977.0,41976.0,1.901426]
[1642653551735,0.00015471,41977.0,41976.0,1.914426]
[1642653552482,0.00015471,41977.0,41976.0,1.898186]
[1642653552683,0.00015471,41977.0,41976.0,1.398186]
[1642653553378,0.00015471,41977.0,41976.0,1.401426]
[1642653553577,0.00015471,41977.0,41976.0,1.411426]
[1642653554881,0.00015471,41977.0,41976.0,1.385186]
[1642653555679,0.00015471,41977.0,41976.0,1.395186]
[1642653556932,0.00015471,41977.0,41976.0,1.401426]
[1642653557532,0.00015471,41977.0,41976.0,1.385186]
[1642653557732,0.00015471,41977.0,41976.0,1.395186]
[1642653558933,0.00015471,41977.0,41976.0,1.385186]
[1642653559333,0.00015471,41977.0,41976.0,1.401426]
[1642653559979,0.00015471,41977.0,41976.0,1.411426]
[1642653561182,0.00015471,41977.0,41976.0,1.401426]
[1642653561782,0.00015471,41977.0,41976.0,1.411426]
[1642653562986,0.00015471,41977.0,41976.0,1.401426]
[1642653563630,0.00015471,41977.0,41976.0,1.410426]
[1642653564530,0.00015471,41977.0,41976.0,1.02524]
[1642653564741,0.27171334,41977.0,41976.0,1.02524]
[1642653564927,0.27171334,41977.0,41976.0,1.01624]
[1642653565129,0.00015471,41977.0,41976.0,1.27940139]
[1642653565329,0.00015471,41977.0,41976.0,1.66458739]
[1642653565729,0.00015471,41977.0,41976.0,1.67458739]
[1642653567184,0.00015471,41977.0,41976.0,1.66458739]
[1642653567784,0.00015471,41977.0,41976.0,1.67458739]
[1642653568985,0.01019936,41979.0,41976.0,1.67458739]
[1642653569186,0.01128789,41979.0,41977.0,0.885186]
[1642653569784,0.01128789,41979.0,41977.0,0.894186]
[1642653569988,0.01128789,41979.0,41978.0,0.01624]
[1642653570186,0.01019936,41979.0,41978.0,0.01624]
[1642653571635,0.2657105,41979.0,41978.0,0.02324]
[1642653572437,0.2657105,41979.0,41978.0,0.007]
[1642653572639,0.6657105,41979.0,41978.0,0.007]
[1642653572839,0.7136105,41979.0,41978.0,0.007]
[1642653573040,1.38032109,41979.0,41976.0,1.0]
[1642653573238,0.9095198,41978.0,41976.0,1.0]
[1642653573436,0.2979,41977.0,41976.0,1.0]
[1642653574039,0.0479,41977.0,41976.0,1.0]
[1642653575181,1.06156448,41977.0,41976.0,1.0]
[1642653575385,0.4544268,41977.0,41976.0,1.0]
[1642653575581,1.283662,41977.0,41976.0,1.0]
[1642653575980,1.295662,41977.0,41976.0,1.0]
[1642653576582,0.9487142,41977.0,41976.0,1.0]
[1642653577181,0.9367142,41977.0,41976.0,1.0]
[1642653577583,0.9267142,41977.0,41976.0,1.0]
[1642653577783,0.9397142,41977.0,41976.0,1.0]
[1642653578328,1.0397142,41977.0,41976.0,1.0]
[1642653578934,1.0267142,41977.0,41976.0,1.0]
[1642653579729,1.0397142,41977.0,41976.0,1.0]
[1642653579930,0.337336,41970.0,41961.0,0.01749121]
[1642653580135,0.0479,41969.0,41961.0,0.01870404]
[1642653580330,0.0479,41969.0,41962.0,0.00025785]
[1642653581132,0.2879,41969.0,41962.0,0.00025785]
[1642653581333,0.17526095,41968.0,41963.0,0.22519048]
[1642653581537,0.0479,41967.0,41961.0,0.00121268]
[1642653581737,0.0479,41967.0,41964.0,0.00022347]
[1642653581934,0.0479,41967.0,41962.0,0.04225785]
[1642653582182,0.0479,41967.0,41963.0,0.00024066]
[1642653583389,0.0479,41967.0,41962.0,0.00025785]
[1642653583782,0.0479,41967.0,41961.0,0.00121267]
[1642653583983,0.0619,41967.0,41963.0,0.007]
[1642653584382,0.0619,41967.0,41964.0,0.00022347]
[1642653585284,0.0479,41967.0,41964.0,0.00022347]
[1642653585482,0.0479,41967.0,41962.0,0.00025785]
[1642653585682,0.0609,41967.0,41964.0,0.001]
[1642653586127,0.0609,41967.0,41965.0,0.00020628]
[1642653586327,0.31161717,41966.0,41965.0,0.00020628]
[1642653586529,0.35951717,41966.0,41965.0,0.00020628]
[1642653587427,0.35951717,41966.0,41961.0,0.00121268]
[1642653587627,0.41910446,41966.0,41961.0,0.00121268]
[1642653587826,0.44010446,41966.0,41962.0,0.00025785]
[1642653588027,0.38051717,41966.0,41962.0,0.00025785]
[1642653588627,0.38051717,41966.0,41961.0,0.00121266]
[1642653588826,0.38051717,41966.0,41962.0,0.00025785]
[1642653589026,0.35951717,41966.0,41962.0,0.00025785]
[1642653589688,0.36451717,41966.0,41962.0,0.024]
[1642653589988,0.36451717,41966.0,41963.0,0.00024066]
[1642653591390,0.35951717,41966.0,41963.0,0.00024066]
[1642653591589,0.35951717,41966.0,41962.0,0.00025785]
[1642653591893,0.36451717,41966.0,41963.0,0.011]
[1642653592193,0.28481271,41965.0,41964.0,0.00022347]
[1642653592390,0.67854583,41965.0,41964.0,0.00022347]
[1642653592590,1.20253583,41965.0,41964.0,0.00022347]
[1642653592788,0.75253583,41965.0,41964.0,0.00022347]
[1642653593431,1.02681011,41965.0,41964.0,0.00022347]
[1642653593630,1.02681011,41965.0,41962.0,0.00025785]
[1642653593831,1.04081011,41965.0,41962.0,0.00025785]
[1642653594632,1.04081011,41965.0,41961.0,0.00121265]
[1642653594836,1.04081011,41965.0,41962.0,0.00025785]
[1642653595031,1.02681011,41965.0,41962.0,0.00025785]
[1642653595832,1.03881011,41965.0,41961.0,0.00121265]
[1642653596032,1.03881011,41965.0,41962.0,0.00025785]
[1642653597082,1.02681011,41965.0,41961.0,0.00121265]
[1642653597385,1.02681011,41965.0,41962.0,0.00025785]
[1642653597782,1.04181011,41965.0,41962.0,0.00025785]
[1642653598181,1.04181011,41965.0,41961.0,0.00121265]
[1642653598380,1.04181011,41965.0,41962.0,0.00025785]
[1642653598682,0.70794695,41965.0,41962.0,0.00025785]
[1642653598882,0.63395695,41965.0,41962.0,0.00025785]
[1642653599484,0.61895695,41965.0,41961.0,0.00121265]
[1642653599682,0.61895695,41965.0,41962.0,0.00025785]
[1642653599887,0.63095695,41965.0,41962.0,0.00025785]
[1642653600684,0.63095695,41965.0,41961.0,0.00121265]
[1642653600933,0.63095695,41965.0,41962.0,0.00025785]
[1642653601130,0.61895695,41965.0,41962.0,0.00025785]
[1642653601733,0.63395695,41965.0,41962.0,0.00025785]
[1642653601931,0.63395695,41965.0,41961.0,0.00121265]
[1642653602132,0.63395695,41965.0,41962.0,0.00025785]
[1642653602831,0.63395695,41965.0,41962.0,0.00019301]
[1642653603030,0.61895695,41965.0,41962.0,0.00019301]
[1642653603833,0.63695695,41965.0,41962.0,0.00019301]
[1642653604232,0.63695695,41965.0,41961.0,0.00121265]
[1642653604433,0.63695695,41965.0,41962.0,0.00019301]
[1642653604988,0.96540607,41965.0,41962.0,0.00019301]
[1642653605387,0.61895695,41965.0,41961.0,0.00121265]
[1642653605587,0.61895695,41965.0,41962.0,0.00019301]
[1642653605787,0.62095695,41965.0,41962.0,0.00019301]
[1642653606587,0.62095695,41965.0,41961.0,0.00121265]
[1642653606787,0.62095695,41965.0,41962.0,0.00019301]
[1642653606987,0.61895695,41965.0,41962.0,0.00019301]
[1642653607792,0.61895695,41965.0,41961.0,0.00121265]
[1642653607989,0.63995695,41965.0,41962.0,0.00019301]
[1642653609029,0.63995695,41965.0,41961.0,0.00121265]
[1642653609229,0.00126804,41963.0,41962.0,0.00019301]
[1642653609430,0.39916804,41963.0,41962.0,0.00019301]
[1642653609627,0.72710912,41963.0,41962.0,0.00019301]
[1642653609828,0.74010912,41963.0,41962.0,0.00019301]
[1642653610029,0.39010912,41963.0,41962.0,0.00019301]
[1642653610228,0.39010912,41963.0,41960.0,0.00121265]
[1642653610431,0.39010912,41963.0,41961.0,0.0002102]
[1642653610632,0.30824229,41962.0,41961.0,0.0002102]
[1642653610829,0.35614229,41962.0,41961.0,0.0002102]
[1642653611452,0.35614229,41962.0,41959.0,0.00121266]
[1642653611629,0.35614229,41962.0,41960.0,0.0002274]
[1642653611830,0.37014229,41962.0,41960.0,0.0002274]
[1642653612688,0.37014229,41962.0,41959.0,0.00121267]
[1642653612889,0.37014229,41962.0,41960.0,0.0002274]
[1642653613091,0.35614229,41962.0,41960.0,0.0002274]
[1642653613886,0.29873151,41961.0,41959.0,0.00121267]
[1642653614087,0.29873151,41961.0,41960.0,0.0002274]
[1642653614288,0.0479,41961.0,41960.0,0.0002274]
[1642653614488,0.46124084,41961.0,41960.0,0.0002274]
[1642653614690,0.0479,41961.0,41960.0,0.0002274]
[1642653614989,0.0479,41961.0,41958.0,0.00121268]
[1642653615390,0.0479,41961.0,41959.0,0.00024459]
[1642653615834,0.41300759,41960.0,41959.0,0.00024459]
[1642653616033,0.32241966,41960.0,41959.0,0.00024459]
[1642653616234,0.32241966,41960.0,41958.0,0.00121269]
[1642653616435,0.32241966,41960.0,41959.0,0.00024459]
[1642653616837,0.0479,41960.0,41959.0,0.00024459]
[1642653617439,0.0479,41960.0,41957.0,0.00121269]
[1642653617637,0.0479,41960.0,41958.0,0.00026178]
[1642653617837,0.0639,41960.0,41958.0,0.00026178]
[1642653618637,0.0639,41960.0,41957.0,0.0012127]
[1642653618839,0.0639,41960.0,41958.0,0.00026178]
[1642653619041,0.0479,41960.0,41958.0,0.00026178]
[1642653619982,0.25740456,41958.0,41957.0,0.0012127]
[1642653620385,0.25740456,41958.0,41957.0,0.00149167]
[1642653620583,0.25740456,41958.0,41957.0,0.00027897]
[1642653620984,0.25740456,41958.0,41955.0,0.00121272]
[1642653621187,0.25740456,41958.0,41956.0,0.00029616]
[1642653621986,0.27040456,41958.0,41956.0,0.00029616]
[1642653622184,0.27040456,41958.0,41955.0,0.00121273]
[1642653622386,0.27040456,41958.0,41956.0,0.00029616]
[1642653623188,0.25740456,41958.0,41956.0,0.00029616]
[1642653623441,0.25740456,41958.0,41955.0,0.00121273]
[1642653623638,0.25740456,41958.0,41956.0,0.00029616]
[1642653624038,0.26540456,41958.0,41956.0,0.00029616]
[1642653625139,0.25740456,41958.0,41956.0,0.00029616]
[1642653625838,0.25740456,41958.0,41955.0,0.00121273]
[1642653626046,0.27040456,41958.0,41955.0,0.00121273]
[1642653626239,0.27033916,41958.0,41956.0,0.00029616]
[1642653627081,0.51033916,41958.0,41954.0,0.00121274]
[1642653627281,0.49733916,41958.0,41955.0,0.00031335]
[1642653627882,0.51133916,41958.0,41955.0,0.00031335]
[1642653629083,0.49733916,41958.0,41955.0,0.00031335]
[1642653629282,0.24,41958.0,41955.0,0.00031335]
[1642653629481,0.24,41958.0,41954.0,0.00121274]
[1642653629683,0.24,41958.0,41955.0,0.00031335]
[1642653630090,0.24371317,41958.0,41955.0,0.00031335]
[1642653630682,0.24371317,41958.0,41954.0,0.00121274]
[1642653630929,0.24371317,41958.0,41955.0,0.00031335]
[1642653631430,0.23971317,41958.0,41955.0,0.00031335]
[1642653631831,0.23971317,41958.0,41954.0,0.00121274]
[1642653632030,0.23971317,41958.0,41955.0,0.00031335]
[1642653632229,0.24571317,41958.0,41955.0,0.00031335]
[1642653633031,0.24571317,41958.0,41954.0,0.00121274]
[1642653633231,0.24571317,41958.0,41955.0,0.00031335]
[1642653633535,0.23971317,41958.0,41955.0,0.00031335]
[1642653634135,0.24571317,41958.0,41955.0,0.00031335]
[1642653634334,0.24571317,41958.0,41954.0,0.00121274]
[1642653634586,0.24571317,41958.0,41955.0,0.00031335]
[1642653635687,0.23971317,41958.0,41955.0,0.00031335]
[1642653636090,0.24571317,41958.0,41955.0,0.00031335]
[1642653636689,0.24571317,41958.0,41954.0,0.00121274]
[1642653636888,0.24571317,41958.0,41955.0,0.00031335]
[1642653637487,0.23971317,41958.0,41955.0,0.00031335]
[1642653637887,0.23971317,41958.0,41954.0,0.00121274]
[1642653638191,0.23971317,41958.0,41955.0,0.00031335]
[1642653638434,0.24671317,41958.0,41955.0,0.00031335]
[1642653639033,0.24671317,41958.0,41954.0,0.00121274]
[1642653639233,0.24671317,41958.0,41955.0,0.00031335]
[1642653639634,0.23971317,41958.0,41955.0,0.00031335]
[1642653640240,0.24171317,41958.0,41954.0,0.00121274]
[1642653640437,0.24171317,41958.0,41955.0,0.00031335]
[1642653641442,0.24171317,41958.0,41954.0,0.00121274]
[1642653641636,0.23971317,41958.0,41955.0,0.00031335]
[1642653642295,0.24371317,41958.0,41955.0,0.00031335]
[1642653642697,0.24371317,41958.0,41954.0,0.00121274]
[1642653642899,0.24371317,41958.0,41955.0,0.00031335]
[1642653643596,0.23971317,41958.0,41955.0,0.00031335]
[1642653643796,0.23971317,41958.0,41954.0,0.00121274]
[1642653644101,0.23971317,41958.0,41955.0,0.00031335]
[1642653645097,0.23971317,41958.0,41954.0,0.00121274]
[1642653645297,0.23971317,41958.0,41955.0,0.00031335]
[1642653646339,0.25871317,41958.0,41954.0,0.00121274]
[1642653646539,0.25871317,41958.0,41955.0,0.00031335]
[1642653647541,0.25871317,41958.0,41954.0,0.00121274]
[1642653647740,0.25871317,41958.0,41955.0,0.00031335]
[1642653648145,0.23971317,41958.0,41955.0,0.00031335]
[1642653648341,0.25871317,41958.0,41955.0,0.00031335]
[1642653648742,0.25871317,41958.0,41954.0,0.00121274]
[1642653648943,0.25871317,41958.0,41955.0,0.00031335]
[1642653649588,0.23971317,41958.0,41955.0,0.00031335]
[1642653650385,0.25271317,41958.0,41955.0,0.00031335]
[1642653650985,0.25271317,41958.0,41954.0,0.00121274]
[1642653651286,0.25271317,41958.0,41955.0,0.00031335]
[1642653651687,0.23971317,41958.0,41955.0,0.00031335]
[1642653652287,0.23971317,41958.0,41954.0,0.00121274]
[1642653652486,0.25871317,41958.0,41955.0,0.00031335]
[1642653652889,0.25871317,41958.0,41954.0,0.00121274]
[1642653653090,0.25871317,41958.0,41949.0,0.60268339]
[1642653653333,0.25871317,41958.0,41954.0,0.00121274]
[1642653653738,0.23971317,41958.0,41954.0,0.00121274]
[1642653654337,0.28819908,41952.0,41950.0,8.595e-05]
[1642653654740,0.0479,41951.0,41950.0,8.595e-05]
[1642653654936,0.0479,41951.0,41949.0,0.00010314]
[1642653655135,0.0479,41951.0,41946.0,0.00015471]
[1642653655435,0.34897954,41949.0,41945.0,0.0001719]
[1642653655634,0.39687954,41949.0,41948.0,0.00121284]
[1642653655834,0.59573746,41949.0,41948.0,0.00121284]
[1642653656035,0.59573746,41949.0,41948.0,0.00133317]
[1642653656233,0.60273746,41949.0,41948.0,0.00133317]
[1642653656635,0.60273746,41949.0,41948.0,0.00012033]
[1642653656937,0.60273746,41949.0,41943.0,0.60268339]
[1642653656938,0.61760759,41949.0,41946.0,0.00121286]
[1642653657390,0.61760759,41949.0,41947.0,0.00013752]
[1642653657591,0.32392667,41948.0,41947.0,0.00013752]
[1642653657791,0.37182667,41948.0,41947.0,0.00013752]
[1642653658190,0.37182667,41948.0,41946.0,0.00121287]
[1642653658390,0.30838152,41947.0,41946.0,0.00121287]
[1642653658692,0.35628152,41947.0,41946.0,0.00136758]
[1642653659091,0.27190414,41940.0,41939.0,0.00057284]
[1642653659293,0.27190414,41940.0,41938.0,0.01624]
[1642653659591,0.27190414,41940.0,41939.0,0.00012033]
[1642653660195,0.27190414,41940.0,41938.0,0.00013752]
[1642653660499,0.27590414,41940.0,41938.0,0.00013752]
[1642653660694,0.27590414,41940.0,41939.0,0.385186]
[1642653660935,0.27590414,41940.0,41938.0,0.00013752]
[1642653661137,0.0479,41939.0,41938.0,0.00013752]
[1642653661937,0.0479,41939.0,41937.0,0.31872995]
[1642653662137,0.0479,41939.0,41938.0,0.38532352]
[1642653662737,0.0479,41939.0,41938.0,0.00013752]
[1642653662940,0.32397054,41939.0,41938.0,0.00013752]
[1642653663139,0.32397054,41939.0,41936.0,0.00121301]
[1642653663140,0.32397054,41939.0,41936.0,0.00138491]
[1642653663340,0.68105836,41939.0,41937.0,0.00015471]
[1642653663539,0.29983583,41938.0,41937.0,0.00015471]
[1642653663940,0.29387465,41938.0,41937.0,0.00015471]
[1642653664339,0.01,41938.0,41936.0,0.00121302]
[1642653664590,0.01,41938.0,41937.0,0.00015471]
[1642653665386,0.01,41938.0,41935.0,0.00121303]
[1642653665587,0.0479,41939.0,41936.0,0.0001719]
[1642653665787,0.32887218,41939.0,41936.0,0.0001719]
[1642653666387,0.33487218,41939.0,41936.0,0.0001719]
[1642653666588,0.33487218,41939.0,41935.0,0.00121303]
[1642653666589,0.24373532,41938.0,41935.0,0.00121303]
[1642653666789,0.24373532,41938.0,41936.0,0.0001719]
[1642653667889,0.24373532,41938.0,41935.0,0.00121304]
[1642653668189,0.24373532,41938.0,41936.0,0.0001719]
[1642653668451,0.48373532,41938.0,41936.0,0.0001719]
[1642653668854,0.48773532,41938.0,41936.0,0.0001719]
[1642653669051,0.48773532,41938.0,41935.0,0.00121304]
[1642653669250,0.48773532,41938.0,41936.0,0.0001719]
[1642653669651,0.77390774,41938.0,41936.0,0.0001719]
[1642653669853,0.27573345,41937.0,41936.0,0.0001719]
[1642653670353,0.004,41937.0,41936.0,0.0001719]
[1642653671554,0.48373532,41938.0,41934.0,0.00121304]
[1642653671753,0.48373532,41938.0,41935.0,0.00018909]
[1642653672399,0.48773532,41938.0,41935.0,0.00018909]
[1642653672604,0.48773532,41938.0,41934.0,0.00121304]